bitfinex/quotes_SOLUSD_20241231
["timestamp","ask_amount","ask_price","bid_price","bid_amount"]
[1735675697404,1.5817,194.96,194.89,8.11009075]
[1735675698094,8.11009075,195.0,194.93,8.11009075]
[1735675700224,28.11009075,194.99,194.93,23.776884]
[1735675700398,20.0,194.99,194.93,8.11009075]
[1735675701092,8.11009075,195.0,194.93,8.11009075]
[1735675701907,8.11009075,194.99,194.93,8.11009075]
[1735675702706,8.11009075,194.98,194.91,8.11009075]
[1735675703007,8.11009075,194.97,194.9,31.88697475]
[1735675704024,8.11009075,194.97,194.9,8.11009075]
[1735675705511,8.11009075,194.97,194.78,13.09221691]
[1735675705512,8.11009075,194.91,194.78,13.09221691]
[1735675705802,8.11009075,194.89,194.82,8.11009075]
[1735675706101,8.11009075,194.9,194.84,31.88697475]
[1735675706297,20.0,194.94,194.85,8.11009075]
[1735675706502,8.11009075,194.92,194.85,8.11009075]
[1735675706710,8.11009075,194.91,194.85,8.11009075]
[1735675707009,8.11009075,194.91,194.84,8.11009075]
[1735675707205,8.11009075,194.91,194.85,8.11009075]
[1735675707813,8.11009075,194.91,194.84,8.11009075]
[1735675708026,8.11009075,194.9,194.84,8.11009075]
[1735675708221,8.11009075,194.89,194.82,31.88697475]
[1735675708635,8.11009075,194.89,194.82,8.11009075]
[1735675708840,8.11009075,194.88,194.81,8.11009075]
[1735675709047,8.11009075,194.88,194.82,23.776884]
[1735675709346,8.11009075,194.89,194.82,31.88697475]
[1735675709837,8.11009075,194.88,194.82,23.776884]
[1735675710741,8.11009075,194.88,194.81,8.11009075]
[1735675712452,8.11009075,194.87,194.81,23.776884]
[1735675713116,8.11009075,194.9,194.83,8.11009075]
[1735675713315,14.32609075,194.91,194.84,8.11009075]
[1735675713651,6.216,194.91,194.85,8.11009075]
[1735675716323,14.32609075,194.91,194.84,8.11009075]
[1735675720147,8.11009075,194.9,194.84,8.11009075]
[1735675721318,8.11009075,194.9,194.83,8.11009075]
[1735675722335,8.11009075,194.88,194.81,8.11009075]
[1735675725449,8.11009075,194.88,194.75,1.6617]
[1735675725450,8.11009075,194.85,194.78,8.11009075]
[1735675725653,8.11009075,194.86,194.79,8.11009075]
[1735675726441,8.11009075,194.86,194.77,20.0]
[1735675726442,8.11009075,194.83,194.73,12.838]
[1735675726747,8.11009075,194.83,194.76,8.11009075]
[1735675729047,8.11009075,194.83,194.77,8.11009075]
[1735675729453,8.11009075,194.84,194.77,8.11009075]
[1735675729660,8.11009075,194.83,194.77,8.11009075]
[1735675731659,8.11009075,194.83,194.76,8.11009075]
[1735675736854,8.11009075,194.84,194.77,8.11009075]
[1735675737062,8.11009075,194.84,194.76,8.11009075]
[1735675737363,8.11009075,194.83,194.76,8.11009075]
[1735675738162,8.11009075,194.84,194.76,8.11009075]
[1735675739147,8.11009075,194.83,194.76,8.11009075]
[1735675739351,14.16279075,194.83,194.76,8.11009075]
[1735675740857,14.16279075,194.83,194.75,8.11009075]
[1735675741962,8.11009075,194.8,194.73,8.11009075]
[1735675742150,8.11009075,194.81,194.74,8.11009075]
[1735675742466,14.16279075,194.83,194.76,8.11009075]
[1735675743565,8.11009075,194.82,194.75,8.11009075]
[1735675743748,8.11009075,194.81,194.75,23.776884]
[1735675743945,8.11009075,194.81,194.74,8.11009075]
[1735675745167,6.0527,194.83,194.72,20.0]
[1735675745168,8.11009075,194.82,194.75,8.11009075]
[1735675745351,6.0527,194.83,194.76,8.11009075]
[1735675745559,6.0527,194.83,194.77,8.11009075]
[1735675747652,6.0527,194.83,194.73,36.614784]
[1735675747653,14.16279075,194.83,194.76,8.11009075]
[1735675749371,6.0527,194.83,194.77,31.88697475]
[1735675749552,34.4337,194.87,194.73,36.614784]
[1735675749553,1.6043,194.87,194.8,8.11009075]
[1735675749760,1.6043,194.87,194.83,8.11009075]
[1735675750365,8.11009075,194.91,194.84,8.11009075]
[1735675750566,9.65829075,194.92,194.84,8.11009075]
[1735675751646,9.65829075,194.92,194.85,8.11009075]
[1735675751849,1.5482,194.92,194.86,8.11009075]
[1735675752574,1.5482,194.92,194.87,8.11009075]
[1735675752776,1.5482,194.92,194.86,8.11009075]
[1735675753354,1.5482,194.92,194.87,8.11009075]
[1735675754360,9.65829075,194.92,194.86,23.776884]
[1735675754676,9.65829075,194.92,194.86,31.88697475]
[1735675754677,1.5482,194.92,194.86,31.88697475]
[1735675755283,1.5482,194.92,194.86,23.776884]
[1735675756058,1.5482,194.92,194.84,8.11009075]
[1735675756059,8.11009075,194.91,194.84,8.11009075]
[1735675758959,8.11009075,194.9,194.83,8.11009075]
[1735675759682,8.11009075,194.91,194.84,8.11009075]
[1735675760575,9.65829075,194.92,194.85,8.11009075]
[1735675760781,1.5482,194.92,194.86,8.11009075]
[1735675762257,8.11009075,194.94,194.87,23.776884]
[1735675762578,8.11009075,194.94,194.87,8.11009075]
[1735675764281,8.11009075,194.94,194.87,23.776884]
[1735675764478,8.11009075,194.92,194.86,23.776884]
[1735675765385,8.11009075,194.93,194.86,8.11009075]
[1735675766589,8.11009075,194.92,194.86,23.776884]
[1735675766765,8.11009075,194.93,194.86,8.11009075]
[1735675773984,1.5191,194.96,194.86,8.11009075]
[1735675774363,8.11009075,194.93,194.86,8.11009075]
[1735675774585,1.5191,194.96,194.88,8.11009075]
[1735675774765,9.62919075,194.96,194.89,8.11009075]
[1735675774960,8.11009075,194.95,194.88,8.11009075]
[1735675776073,8.11009075,194.94,194.87,8.11009075]
[1735675776592,8.11009075,194.93,194.87,23.776884]
[1735675778677,8.11009075,194.95,194.89,23.776884]
[1735675780796,8.11009075,194.94,194.88,23.776884]
[1735675781290,8.11009075,194.95,194.88,8.11009075]
[1735675783693,1.5191,194.96,194.93,8.11009075]
[1735675783895,6.0213,194.98,194.94,23.776884]
[1735675784084,6.0213,194.98,194.92,8.11009075]
[1735675785577,14.13139075,194.98,194.91,28.11009075]
[1735675785885,14.13139075,194.98,194.92,23.776884]
[1735675787299,14.13139075,194.98,194.91,28.11009075]
[1735675787802,6.0213,194.98,194.92,23.776884]
[1735675788101,1.5056,195.01,194.94,8.11009075]
[1735675788410,9.61569075,195.01,194.94,8.11009075]
[1735675788574,8.11009075,194.99,194.92,8.11009075]
[1735675789009,8.11009075,194.99,194.92,31.88697475]
[1735675789183,8.11009075,194.98,194.92,23.776884]
[1735675794201,8.11009075,194.97,194.9,8.11009075]
[1735675794391,8.11009075,194.96,194.89,8.11009075]
[1735675795205,8.11009075,194.95,194.89,23.776884]
[1735675795429,9.61989075,194.94,194.87,8.11009075]
[1735675795905,9.61989075,194.94,194.88,23.776884]
[1735675797105,1.5098,194.94,194.88,8.11009075]
[1735675801920,1.5098,194.94,194.88,8.11009075]
[1735675802722,1.5098,194.94,194.85,23.776884]
[1735675802907,1.5098,194.94,194.88,8.11009075]
[1735675804215,9.61989075,194.94,194.88,23.776884]
[1735675804922,1.5098,194.94,194.88,8.11009075]
[1735675806026,9.61989075,194.94,194.88,23.776884]
[1735675806187,9.61989075,194.94,194.84,12.8308]
[1735675806394,9.61989075,194.94,194.85,8.11009075]
[1735675806395,8.11009075,194.93,194.85,8.11009075]
[1735675806888,8.11009075,194.93,194.86,23.776884]
[1735675807194,8.11009075,194.93,194.86,31.88697475]
[1735675807691,8.11009075,194.93,194.85,31.88697475]
[1735675809323,8.11009075,194.93,194.86,8.11009075]
[1735675809528,8.11009075,194.91,194.84,8.11009075]
[1735675809696,8.11009075,194.9,194.83,8.11009075]
[1735675809895,8.11009075,194.86,194.81,8.09221691]
[1735675810214,8.11009075,194.85,194.81,8.09221691]
[1735675811025,8.11009075,194.85,194.79,23.776884]
[1735675811728,8.0106,194.89,194.79,31.88697475]
[1735675811901,8.11009075,194.86,194.79,31.88697475]
[1735675812102,8.11009075,194.85,194.79,31.88697475]
[1735675813440,8.11009075,194.85,194.79,8.11009075]
[1735675813616,8.11009075,194.83,194.76,8.11009075]
[1735675813919,8.11009075,194.82,194.76,8.11009075]
[1735675814141,8.11009075,194.83,194.77,23.776884]
[1735675814506,9.64429075,194.82,194.75,16.20230766]
[1735675814703,8.11009075,194.81,194.75,16.20230766]
[1735675815112,8.11009075,194.81,194.74,16.20230766]
[1735675815305,8.11009075,194.81,194.75,23.776884]
[1735675815743,8.11009075,194.81,194.74,16.20230766]
[1735675815922,8.11009075,194.78,194.74,8.09221691]
[1735675816221,8.11009075,194.78,194.71,8.11009075]
[1735675816422,8.0996,194.82,194.72,31.88697475]
[1735675816423,8.11009075,194.79,194.72,31.88697475]
[1735675816844,8.0996,194.82,194.78,8.11009075]
[1735675817127,8.11009075,194.86,194.79,31.88697475]
[1735675819128,8.11009075,194.85,194.79,31.88697475]
[1735675820400,8.11009075,194.85,194.77,23.776884]
[1735675820607,8.11009075,194.85,194.79,23.776884]
[1735675822018,8.11009075,194.81,194.74,12.8374]
[1735675822207,8.11009075,194.82,194.75,8.11009075]
[1735675822411,8.11009075,194.82,194.76,23.776884]
[1735675822961,8.11009075,194.81,194.74,8.11009075]
[1735675823140,8.11009075,194.81,194.74,28.11009075]
[1735675823329,8.11009075,194.82,194.75,31.88697475]
[1735675823513,8.11009075,194.82,194.76,8.11009075]
[1735675824018,8.11009075,194.82,194.75,31.88697475]
[1735675825734,8.11009075,194.81,194.75,23.776884]
[1735675827148,8.11009075,194.8,194.74,20.0]
[1735675827322,8.11009075,194.8,194.73,8.11009075]
[1735675827522,20.9291,194.87,194.72,8.11009075]
[1735675827523,8.11009075,194.78,194.72,8.11009075]
[1735675827720,1.5342,194.79,194.73,31.88697475]
[1735675827956,1.5342,194.79,194.75,23.776884]
[1735675829346,1.5342,194.79,194.73,31.88697475]
[1735675829845,1.5342,194.79,194.75,23.776884]
[1735675831620,1.5342,194.79,194.74,8.11009075]
[1735675831824,1.5342,194.79,194.73,8.11009075]
[1735675832034,9.64429075,194.79,194.73,23.776884]
[1735675832940,1.5342,194.79,194.73,8.11009075]
[1735675834448,8.11009075,194.78,194.73,23.776884]
[1735675835248,8.11009075,194.78,194.7,12.8397]
[1735675835453,8.11009075,194.76,194.7,12.8397]
[1735675835747,8.11009075,194.76,194.71,23.776884]
[1735675835955,8.11009075,194.76,194.7,8.11009075]
[1735675836158,8.11009075,194.77,194.7,8.11009075]
[1735675837053,8.11009075,194.75,194.69,20.0]
[1735675838229,8.11009075,194.76,194.69,28.11009075]
[1735675838428,8.11009075,194.76,194.69,20.0]
[1735675838629,8.11009075,194.75,194.69,20.0]
[1735675838839,8.11009075,194.76,194.69,28.11009075]
[1735675839451,8.11009075,194.78,194.71,8.11009075]
[1735675839752,15.91179075,194.79,194.72,8.11009075]
[1735675840854,8.11009075,194.78,194.71,8.11009075]
[1735675841049,8.11009075,194.77,194.7,31.88697475]
[1735675841354,8.11009075,194.75,194.68,8.11009075]
[1735675841527,8.11009075,194.75,194.69,20.0]
[1735675841730,7.8017,194.79,194.67,31.88697475]
[1735675841731,8.11009075,194.74,194.67,31.88697475]
[1735675843263,7.8017,194.79,194.69,20.0]
[1735675843264,8.11009075,194.73,194.69,20.0]
[1735675843459,8.11009075,194.72,194.69,20.0]
[1735675844345,8.11009075,194.72,194.65,8.11009075]
[1735675844543,8.11009075,194.69,194.58,8.09221691]
[1735675844866,8.11009075,194.68,194.63,23.776884]
[1735675845066,8.11009075,194.68,194.61,8.11009075]
[1735675845360,1.6363,194.71,194.59,12.847]
[1735675845668,8.11009075,194.65,194.58,8.11009075]
[1735675846169,8.11009075,194.63,194.6,20.0]
[1735675846360,14.4759,194.71,194.58,8.11009075]
[1735675846565,8.11009075,194.65,194.59,23.776884]
[1735675846737,1.6363,194.71,194.61,23.776884]
[1735675846941,8.11009075,194.68,194.61,8.11009075]
[1735675847144,8.11009075,194.67,194.61,8.11009075]
[1735675847645,8.11009075,194.68,194.61,8.11009075]
[1735675848765,8.11009075,194.66,194.61,23.776884]
[1735675848969,8.11009075,194.66,194.6,8.11009075]
[1735675849347,1.6363,194.71,194.53,38.5535]
[1735675849348,8.11009075,194.64,194.53,38.5535]
[1735675849547,8.11009075,194.64,194.57,8.11009075]
[1735675849748,8.11009075,194.63,194.57,8.11009075]
[1735675850163,8.11009075,194.63,194.54,23.776884]
[1735675850350,8.11009075,194.61,194.55,8.11009075]
[1735675850570,8.11009075,194.61,194.54,8.11009075]
[1735675850760,8.11009075,194.61,194.55,8.11009075]
[1735675851666,8.11009075,194.6,194.53,8.11009075]
[1735675851867,8.11009075,194.6,194.53,28.11009075]
[1735675853153,8.11009075,194.59,194.55,20.0]
[1735675853458,8.11009075,194.59,194.52,8.11009075]
[1735675854047,8.11009075,194.6,194.53,8.11009075]
[1735675856069,8.11009075,194.6,194.54,31.88697475]
[1735675856370,8.11009075,194.62,194.56,28.11009075]
[1735675856850,8.11009075,194.62,194.56,20.0]
[1735675857868,8.11009075,194.61,194.56,20.0]
[1735675858172,8.11009075,194.6,194.54,23.776884]
[1735675858558,8.11009075,194.6,194.54,31.88697475]
[1735675859071,8.11009075,194.6,194.54,23.776884]
[1735675859372,8.11009075,194.58,194.51,8.11009075]
[1735675859957,1.6363,194.63,194.46,12.8561]
[1735675859958,8.11009075,194.56,194.46,12.8561]
[1735675860274,8.11009075,194.54,194.51,20.0]
[1735675860574,8.11009075,194.54,194.42,12.8581]
[1735675860575,8.11009075,194.52,194.42,12.8581]
[1735675860770,8.11009075,194.5,194.44,8.11009075]
[1735675861161,8.11009075,194.51,194.44,8.11009075]
[1735675861471,8.11009075,194.51,194.42,12.8581]
[1735675861472,8.11009075,194.52,194.45,28.11009075]
[1735675861780,8.11009075,194.51,194.45,20.0]
[1735675863683,8.11009075,194.5,194.46,20.0]
[1735675864356,1.5076,194.54,194.44,12.73159605]
[1735675864357,12.73159605,194.51,194.44,12.73159605]
[1735675865672,12.73159605,194.51,194.45,36.633584]
[1735675865975,6.074,194.56,194.5,12.73159605]
[1735675866877,18.80559605,194.56,194.49,12.73159605]
[1735675867651,6.074,194.56,194.49,12.73159605]
[1735675868059,6.074,194.56,194.5,12.73159605]
[1735675868268,6.074,194.56,194.49,12.73159605]
[1735675868473,18.80559605,194.56,194.49,12.73159605]
[1735675869883,12.73159605,194.55,194.48,45.58579605]
[1735675870410,18.80559605,194.56,194.48,45.58579605]
[1735675870683,12.73159605,194.55,194.48,45.58579605]
[1735675870982,12.73159605,194.52,194.45,25.58799605]
[1735675871767,6.074,194.56,194.42,12.8584]
[1735675871768,12.73159605,194.49,194.42,12.8584]
[1735675871955,12.73159605,194.49,194.42,25.58999605]
[1735675872152,12.73159605,194.49,194.43,23.776884]
[1735675872358,12.73159605,194.5,194.43,36.50848005]
[1735675872560,12.73159605,194.51,194.43,36.50848005]
[1735675872784,12.73159605,194.51,194.44,12.73159605]
[1735675873278,12.73159605,194.52,194.46,23.776884]
[1735675873459,12.73159605,194.55,194.48,12.73159605]
[1735675873655,18.80559605,194.56,194.48,12.73159605]
[1735675874374,12.73159605,194.55,194.48,12.73159605]
[1735675874573,12.73159605,194.52,194.48,23.776884]
[1735675874762,12.73159605,194.53,194.48,23.776884]
[1735675876181,6.074,194.56,194.47,32.8551]
[1735675876182,12.73159605,194.52,194.47,32.8551]
[1735675876375,6.074,194.56,194.44,12.73159605]
[1735675876376,12.73159605,194.51,194.44,12.73159605]
[1735675876578,12.73159605,194.5,194.43,25.58939605]
[1735675876777,12.73159605,194.5,194.44,23.776884]
[1735675877082,12.73159605,194.49,194.43,12.8578]
[1735675877890,14.26509605,194.49,194.43,12.8578]
[1735675878076,14.26509605,194.49,194.41,12.73159605]
[1735675878276,14.26509605,194.49,194.42,23.776884]
[1735675878487,12.73159605,194.48,194.41,12.73159605]
[1735675878666,14.26509605,194.49,194.42,12.73159605]
[1735675879196,1.5335,194.49,194.43,12.73159605]
[1735675879577,12.73159605,194.51,194.44,12.73159605]
[1735675879785,12.73159605,194.52,194.44,12.73159605]
[1735675879974,12.73159605,194.52,194.44,25.58849605]
[1735675880866,12.73159605,194.51,194.44,25.58849605]
[1735675881689,12.73159605,194.52,194.44,25.58849605]
[1735675884006,12.73159605,194.48,194.4,12.73159605]
[1735675884497,12.73159605,194.47,194.39,12.73159605]
[1735675884970,12.73159605,194.47,194.4,23.776884]
[1735675885171,12.73159605,194.48,194.41,12.73159605]
[1735675885470,12.73159605,194.49,194.42,12.73159605]
[1735675885898,12.73159605,194.5,194.43,23.776884]
[1735675886194,1.5335,194.54,194.4,36.636384]
[1735675886195,1.5335,194.54,194.48,12.73159605]
[1735675886975,18.80559605,194.56,194.48,12.73159605]
[1735675887191,12.73159605,194.56,194.48,12.73159605]
[1735675887396,12.73159605,194.56,194.48,25.58599605]
[1735675887599,12.73159605,194.56,194.49,12.73159605]
[1735675887778,12.73159605,194.57,194.5,23.776884]
[1735675888291,12.73159605,194.53,194.48,12.8544]
[1735675888701,12.73159605,194.54,194.48,12.8544]
[1735675889895,12.73159605,194.53,194.46,12.73159605]
[1735675890090,12.73159605,194.53,194.45,12.8565]
[1735675890298,12.73159605,194.5,194.43,12.73159605]
[1735675890680,12.73159605,194.49,194.42,12.73159605]
[1735675890999,12.73159605,194.48,194.41,27.18439605]
[1735675891176,12.73159605,194.47,194.41,12.8587]
[1735675891568,12.73159605,194.46,194.39,12.73159605]
[1735675891774,12.73159605,194.46,194.39,36.50848005]
[1735675892089,12.73159605,194.47,194.4,12.73159605]
[1735675892602,12.73159605,194.45,194.39,23.776884]
[1735675892902,12.73159605,194.46,194.39,36.50848005]
[1735675893496,12.73159605,194.47,194.39,36.50848005]
[1735675893694,12.73159605,194.46,194.39,36.50848005]
[1735675893869,12.73159605,194.45,194.39,23.776884]
[1735675894073,12.73159605,194.45,194.38,12.8611]
[1735675895499,12.73159605,194.43,194.38,12.8611]
[1735675895674,12.73159605,194.43,194.35,25.59479605]
[1735675895872,12.73159605,194.42,194.35,25.59479605]
[1735675896073,6.505,194.47,194.33,14.63491691]
[1735675896074,12.73159605,194.39,194.33,8.09221691]
[1735675896487,12.73159605,194.39,194.32,25.59679605]
[1735675897005,12.73159605,194.39,194.33,23.776884]
[1735675897192,12.73159605,194.38,194.31,22.34451296]
[1735675897709,12.73159605,194.38,194.31,14.25229605]
[1735675898603,12.73159605,194.38,194.31,12.73159605]
[1735675898806,12.73159605,194.38,194.3,36.50848005]
[1735675899300,12.73159605,194.37,194.3,12.73159605]
[1735675899508,12.73159605,194.38,194.3,12.73159605]
[1735675899680,12.73159605,194.38,194.31,36.50848005]
[1735675900002,12.73159605,194.38,194.31,12.73159605]
[1735675900206,12.73159605,194.38,194.3,36.50848005]
[1735675900382,12.73159605,194.38,194.31,12.73159605]
[1735675900975,12.73159605,194.41,194.34,12.73159605]
[1735675901306,12.73159605,194.43,194.36,12.73159605]
[1735675901602,12.73159605,194.42,194.35,12.73159605]
[1735675901983,12.73159605,194.41,194.34,12.73159605]
[1735675902185,12.73159605,194.41,194.35,23.776884]
[1735675902809,12.73159605,194.37,194.32,12.8653]
[1735675902982,12.73159605,194.36,194.29,25.59869605]
[1735675904311,12.73159605,194.37,194.3,12.73159605]
[1735675904616,12.73159605,194.36,194.29,12.73159605]
[1735675905308,1.5993,194.37,194.29,12.73159605]
[1735675905309,12.73159605,194.35,194.29,23.776884]
[1735675905613,12.73159605,194.34,194.27,12.73159605]
[1735675905781,12.73159605,194.35,194.28,32.73159605]
[1735675905989,12.73159605,194.35,194.29,20.0]
[1735675906910,12.73159605,194.34,194.29,20.0]
[1735675907111,12.73159605,194.34,194.27,12.73159605]
[1735675907813,12.73159605,194.35,194.28,12.73159605]
[1735675908106,12.73159605,194.34,194.27,25.60019605]
[1735675908692,12.73159605,194.35,194.28,12.73159605]
[1735675910398,12.73159605,194.35,194.27,12.8686]
[1735675910399,12.73159605,194.34,194.27,25.60019605]
[1735675910591,12.73159605,194.35,194.28,12.73159605]
[1735675911188,14.33089605,194.37,194.3,12.73159605]
[1735675911498,12.73159605,194.39,194.32,12.73159605]
[1735675911812,1.5993,194.42,194.35,12.73159605]
[1735675912516,14.33089605,194.42,194.35,12.73159605]
[1735675913318,1.5993,194.42,194.35,12.73159605]
[1735675913610,12.73159605,194.45,194.38,12.73159605]
[1735675913820,12.73159605,194.45,194.38,32.73159605]
[1735675914190,12.73159605,194.43,194.38,20.0]
[1735675914805,12.73159605,194.44,194.38,20.0]
[1735675914998,12.73159605,194.43,194.35,12.73159605]
[1735675915204,12.73159605,194.42,194.35,12.73159605]
[1735675915407,12.73159605,194.42,194.34,25.59559605]
[1735675918220,12.73159605,194.42,194.35,36.50848005]
[1735675918414,12.73159605,194.43,194.37,23.776884]
[1735675918621,12.73159605,194.44,194.37,36.50848005]
[1735675918818,12.73159605,194.44,194.37,23.776884]
[1735675919121,12.73159605,194.43,194.37,23.776884]
[1735675920625,12.73159605,194.44,194.37,23.776884]
[1735675920800,14.33089605,194.46,194.39,23.776884]
[1735675920995,12.73159605,194.46,194.39,36.50848005]
[1735675922125,12.73159605,194.46,194.39,23.776884]
[1735675922827,12.73159605,194.45,194.38,12.73159605]
[1735675923013,12.73159605,194.47,194.39,36.50848005]
[1735675923315,12.73159605,194.47,194.41,23.776884]
[1735675924004,12.73159605,194.47,194.39,12.73159605]
[1735675924239,12.73159605,194.47,194.41,23.776884]
[1735675925599,12.73159605,194.46,194.41,23.776884]
[1735675928524,12.73159605,194.44,194.37,32.73159605]
[1735675928826,12.73159605,194.45,194.37,32.73159605]
[1735675929205,12.73159605,194.45,194.38,12.73159605]
[1735675929825,12.73159605,194.44,194.37,32.73159605]
[1735675930032,12.73159605,194.44,194.39,20.0]
[1735675930331,14.24039605,194.5,194.39,20.0]
[1735675930332,12.73159605,194.45,194.39,20.0]
[1735675931210,12.73159605,194.43,194.37,23.776884]
[1735675931623,12.73159605,194.42,194.37,23.776884]
[1735675931834,12.73159605,194.42,194.35,12.73159605]
[1735675932123,12.73159605,194.42,194.35,36.50848005]
[1735675933319,6.6602,194.46,194.36,12.73159605]
[1735675933532,12.73159605,194.43,194.36,12.73159605]
[1735675933700,12.73159605,194.42,194.35,12.73159605]
[1735675935135,12.73159605,194.41,194.34,36.50848005]
[1735675936718,12.73159605,194.42,194.35,12.73159605]
[1735675939123,12.73159605,194.41,194.34,23.776884]
[1735675939340,12.73159605,194.4,194.33,25.59599605]
[1735675940156,12.73159605,194.39,194.33,12.8644]
[1735675940324,8.15697303,194.4,194.33,12.8644]
[1735675941140,8.15697303,194.38,194.31,1.6666]
[1735675941445,8.15697303,194.37,194.31,1.6666]
[1735675941643,8.15697303,194.37,194.27,1.6061]
[1735675941845,8.15697303,194.35,194.28,8.15697303]
[1735675944060,8.15697303,194.34,194.27,22.63157303]
[1735675944425,8.15697303,194.33,194.26,8.15697303]
[1735675944626,8.15697303,194.32,194.25,31.93385703]
[1735675945956,8.15697303,194.32,194.25,8.15697303]
[1735675946752,8.15697303,194.33,194.26,8.15697303]
[1735675947260,8.15697303,194.34,194.27,8.15697303]
[1735675947963,1.6608,194.38,194.28,8.15697303]
[1735675948130,9.81777303,194.38,194.31,8.15697303]
[1735675948440,8.15697303,194.36,194.29,8.15697303]
[1735675948638,8.15697303,194.35,194.28,8.15697303]
[1735675950252,12.75214844,194.34,194.27,12.75214844]
[1735675951131,12.75214844,194.33,194.26,12.75214844]
[1735675951337,12.75214844,194.32,194.25,12.75214844]
[1735675951651,12.75214844,194.32,194.24,36.52903244]
[1735675954154,12.75214844,194.32,194.24,12.75214844]
[1735675954326,12.75214844,194.31,194.24,12.75214844]
[1735675955555,12.75214844,194.3,194.23,25.62344844]
[1735675956250,12.75214844,194.31,194.24,12.75214844]
[1735675960833,12.75214844,194.32,194.25,12.75214844]
[1735675961958,12.75214844,194.32,194.24,12.75214844]
[1735675962268,12.75214844,194.32,194.25,12.75214844]
[1735675962843,32.75214844,194.33,194.26,12.75214844]
[1735675963352,1.6608,194.38,194.3,12.75214844]
[1735675963353,12.75214844,194.37,194.3,12.75214844]
[1735675963662,14.41294844,194.38,194.31,12.75214844]
[1735675965164,12.75214844,194.37,194.3,12.75214844]
[1735675965661,12.75214844,194.36,194.29,12.75214844]
[1735675965870,12.75214844,194.34,194.27,12.75214844]
[1735675971261,12.75214844,194.34,194.26,12.75214844]
[1735675972165,12.75214844,194.33,194.26,12.75214844]
[1735675972374,8.16235544,194.33,194.26,8.16235544]
[1735675973270,8.16235544,194.34,194.26,8.16235544]
[1735675974176,8.16235544,194.34,194.27,8.16235544]
[1735675974375,8.16235544,194.35,194.27,8.16235544]
[1735675975457,8.16235544,194.37,194.29,8.16235544]
[1735675976067,8.16235544,194.36,194.29,8.16235544]
[1735675977180,8.16235544,194.37,194.29,8.16235544]
[1735675977846,8.16235544,194.36,194.29,8.16235544]
[1735675978048,8.16235544,194.35,194.28,21.02975544]
[1735675978370,8.16235544,194.35,194.28,12.8674]
[1735675978568,8.16235544,194.34,194.27,8.16235544]
[1735675978767,8.16235544,194.35,194.27,8.16235544]
[1735675978978,8.16235544,194.35,194.28,28.16235544]
[1735675983955,8.16235544,194.39,194.32,8.16235544]
[1735675984664,8.16235544,194.39,194.32,23.776884]
[1735675986976,8.16235544,194.37,194.3,8.16235544]
[1735675987177,6.1023,194.41,194.29,22.56515544]
[1735675987178,8.16235544,194.36,194.29,22.56515544]
[1735675987383,8.16235544,194.35,194.29,14.4028]
[1735675987586,8.16235544,194.35,194.29,38.179684]
[1735675988994,8.16235544,194.35,194.29,25.312384]
[1735675989289,8.16235544,194.36,194.29,25.312384]
[1735675989777,8.16235544,194.36,194.28,34.78015544]
[1735675989989,8.16235544,194.34,194.26,12.869]
[1735675990161,8.16235544,194.32,194.25,8.16235544]
[1735675990491,8.16235544,194.32,194.28,20.0]
[1735675990782,8.16235544,194.29,194.23,20.96321691]
[1735675991088,8.16235544,194.29,194.23,12.871]
[1735675991476,8.16235544,194.31,194.24,8.16235544]
[1735675992056,1.5392,194.36,194.24,8.16235544]
[1735675992057,8.16235544,194.33,194.26,8.16235544]
[1735675992258,8.16235544,194.35,194.28,8.16235544]
[1735675992481,8.16235544,194.34,194.27,28.16235544]
[1735675994383,8.16235544,194.33,194.29,20.0]
[1735675994565,8.16235544,194.34,194.29,20.0]
[1735675994977,8.16235544,194.34,194.28,20.0]
[1735675997082,8.16235544,194.34,194.29,20.0]
[1735675997286,8.16235544,194.33,194.29,20.0]
[1735675997681,8.16235544,194.33,194.26,8.16235544]
[1735675998386,8.16235544,194.32,194.28,20.0]
[1735675999174,8.16235544,194.32,194.25,20.0]
[1735675999372,8.16235544,194.32,194.25,28.16235544]
[1735675999576,8.16235544,194.31,194.27,20.0]
[1735676001092,8.16235544,194.32,194.25,8.16235544]
[1735676003114,8.16235544,194.31,194.24,28.16235544]
[1735676003273,8.16235544,194.32,194.24,28.16235544]
[1735676003795,8.16235544,194.31,194.24,20.0]
[1735676003990,8.16235544,194.27,194.24,20.0]
[1735676005091,8.16235544,194.27,194.19,9.74211691]
[1735676005397,8.16235544,194.26,194.19,8.09221691]
[1735676005611,8.16235544,194.25,194.18,21.03685544]
[1735676005976,8.16235544,194.25,194.21,20.0]
[1735676006173,8.16235544,194.24,194.15,12.8763]
[1735676006468,8.16235544,194.24,194.17,8.16235544]
[1735676006678,8.16235544,194.26,194.19,8.16235544]
[1735676007692,8.16235544,194.25,194.21,20.0]
[1735676007883,8.16235544,194.24,194.21,20.0]